bitfinex/quotes_ETHUSD_20250725
["timestamp","ask_amount","ask_price","bid_price","bid_amount"]
[1753462893368,0.597,3643.6,3643.0,1.29690923]
[1753462893569,0.9096,3643.3,3643.0,4.263]
[1753462893789,0.4595,3643.2,3643.0,4.263]
[1753462894208,0.772,3643.3,3643.0,4.263]
[1753462894506,0.1376,3643.1,3643.0,4.263]
[1753462895009,0.1376,3643.3,3643.0,4.7271]
[1753462895478,3.20439144,3643.2,3643.0,4.263]
[1753462895682,0.5971,3643.1,3643.0,4.263]
[1753462897970,0.1376,3643.1,3643.0,4.263]
[1753462899399,4.2373,3643.6,3643.0,4.7202]
[1753462899400,0.772,3643.6,3643.0,4.7202]
[1753462899600,0.1376,3643.3,3643.0,4.7202]
[1753462899920,0.1376,3643.3,3643.0,4.74888]
[1753462900211,3.32300285,3643.3,3643.0,4.263]
[1753462900380,0.5782,3643.3,3643.0,4.263]
[1753462901212,0.1376,3643.3,3643.0,4.263]
[1753462901705,3.32298634,3643.3,3643.0,4.263]
[1753462902206,2.74492023,3643.1,3642.9,4.264]
[1753462902409,3.18559039,3643.0,3642.9,4.264]
[1753462902709,4.01079039,3643.0,3642.9,0.001]
[1753462903291,4.7324973,3643.0,3642.9,0.001]
[1753462903484,5.05339267,3643.0,3642.9,0.001]
[1753462903719,8.49399267,3643.0,3642.9,0.001]
[1753462904228,8.49417193,3643.0,3642.9,0.001]
[1753462904432,8.62172378,3643.0,3642.9,0.001]
[1753462904834,8.77555781,3643.0,3642.9,0.001]
[1753462905141,15.23755787,3643.0,3642.9,0.001]
[1753462905502,22.29755787,3643.0,3642.9,0.001]
[1753462906300,22.14372378,3643.0,3642.9,0.001]
[1753462906499,18.03444847,3643.0,3642.9,0.001]
[1753462906701,21.67842378,3643.0,3642.9,0.001]
[1753462906900,22.14372378,3643.0,3642.9,0.001]
[1753462907218,22.29744306,3643.0,3642.9,0.001]
[1753462907608,18.03444306,3643.0,3642.9,0.001]
[1753462907806,22.29744306,3643.0,3642.9,0.001]
[1753462908006,22.29744306,3643.0,3642.9,1e-08]
[1753462908810,36.79744306,3643.0,3642.9,1e-08]
[1753462909439,22.29744306,3643.0,3642.9,1e-08]
[1753462909933,18.03444306,3643.0,3642.9,1e-08]
[1753462910113,22.29744306,3643.0,3642.9,1e-08]
[1753462910433,18.03444306,3643.0,3642.9,1e-08]
[1753462910619,22.29744306,3643.0,3642.9,1e-08]
[1753462911231,22.29677973,3643.0,3642.9,1e-08]
[1753462912547,18.03377973,3643.0,3642.9,1e-08]
[1753462912729,22.29677973,3643.0,3642.9,1e-08]
[1753462913444,17.56847973,3643.0,3642.9,1e-08]
[1753462913770,21.28147973,3643.0,3642.9,1e-08]
[1753462913981,22.29677973,3643.0,3642.9,1e-08]
[1753462916770,36.79677973,3643.0,3642.9,1e-08]
[1753462917336,36.93437973,3643.0,3642.9,1e-08]
[1753462918134,36.46907973,3643.0,3642.9,1e-08]
[1753462918687,21.96907973,3643.0,3642.9,1e-08]
[1753462919392,17.70607973,3643.0,3642.9,1e-08]
[1753462919581,21.96907973,3643.0,3642.9,1e-08]
[1753462919894,14.26547973,3643.0,3642.9,1e-08]
[1753462920203,21.52947973,3643.0,3642.9,0.45720001]
[1753462920494,21.52947973,3643.0,3642.9,1e-08]
[1753462921496,17.26547973,3643.0,3642.9,1e-08]
[1753462921697,17.74278436,3643.0,3642.9,0.90910001]
[1753462922068,13.47978436,3643.0,3642.9,0.90910001]
[1753462922292,17.74278436,3643.0,3642.9,0.90910001]
[1753462922807,17.74478436,3643.0,3642.9,0.90910001]
[1753462923697,17.74478436,3643.0,3642.9,0.45720001]
[1753462924197,17.74478436,3643.0,3642.9,0.90910001]
[1753462925168,13.48178436,3643.0,3642.9,0.90910001]
[1753462925379,17.74478436,3643.0,3642.9,0.90910001]
[1753462925969,17.5911533,3643.0,3642.9,0.90910001]
[1753462927269,17.59153717,3643.0,3642.9,0.90910001]
[1753462927470,10.53153717,3643.0,3642.9,0.90910001]
[1753462927811,0.39599493,3643.0,3642.9,0.90910001]
[1753462928113,0.002,3643.0,3642.9,1.69220001]
[1753462928268,0.002,3643.0,3642.9,1.87518001]
[1753462929065,0.002,3643.0,3642.9,2.01278001]
[1753462929702,2.74699039,3643.0,3642.9,1.69220001]
[1753462930302,7.00999039,3643.0,3642.9,0.45040001]
[1753462930505,7.14759039,3643.0,3642.9,0.45040001]
[1753462930707,7.14759039,3643.0,3642.9,1e-08]
[1753462931609,7.14759039,3643.0,3642.9,0.45040001]
[1753462931980,7.14759039,3643.0,3642.9,0.88810001]
[1753462932285,2.88459039,3643.0,3642.9,0.88810001]
[1753462932492,7.14659039,3643.0,3642.9,0.88810001]
[1753462933278,4.264,3643.0,3642.9,0.88810001]
[1753462934005,4.264,3643.0,3642.9,1.65050001]
[1753462934006,0.002,3643.0,3642.9,1.65050001]
[1753462934211,0.002,3643.0,3642.9,2.09006398]
[1753462935510,0.002,3643.0,3642.9,1.65050001]
[1753462936904,2.74699039,3643.0,3642.9,0.45040001]
[1753462937111,0.002,3643.0,3642.9,0.88810001]
[1753462938698,0.002,3643.0,3642.9,1.80120001]
[1753462939018,0.002,3643.0,3642.9,2.53310551]
[1753462939438,2.74699039,3643.0,3642.9,1.36350001]
[1753462939582,2.74699039,3643.0,3642.9,1e-08]
[1753462939982,2.74699039,3643.0,3642.9,0.45040001]
[1753462941521,2.74699039,3643.0,3642.9,1e-08]
[1753462941686,3.33839039,3643.0,3642.9,1e-08]
[1753462941886,2.88459039,3643.0,3642.9,1e-08]
[1753462942112,4.37282009,3643.0,3642.9,1e-08]
[1753462942427,8.12732009,3643.0,3642.9,1e-08]
[1753462942725,10.24832009,3643.0,3642.9,1e-08]
[1753462942894,17.85832009,3643.0,3642.9,1e-08]
[1753462944583,21.09732009,3643.0,3642.9,1e-08]
[1753462945191,16.38252009,3643.0,3642.9,1e-08]
[1753462945411,15.62802009,3643.0,3642.9,1e-08]
[1753462945593,12.94459039,3643.0,3642.9,1e-08]
[1753462945798,12.94459039,3643.0,3642.9,0.45040001]
[1753462945799,17.20559039,3643.0,3642.9,0.45040001]
[1753462946437,17.20559039,3643.0,3642.9,1e-08]
[1753462946599,18.13139039,3643.0,3642.9,1e-08]
[1753462947893,13.87039039,3643.0,3642.9,1e-08]
[1753462948231,18.78291981,3643.0,3642.9,1e-08]
[1753462948429,23.04391981,3643.0,3642.9,1e-08]
[1753462948591,17.30711981,3643.0,3642.9,1e-08]
[1753462948790,17.20559039,3643.0,3642.9,0.45040001]
[1753462949101,17.20559039,3643.0,3642.9,1e-08]
[1753462949302,17.65939039,3643.0,3642.9,1e-08]
[1753462950309,17.20559039,3643.0,3642.9,1e-08]
[1753462951536,17.65939039,3643.0,3642.9,1e-08]
[1753462951697,19.94559981,3643.0,3642.9,1e-08]
[1753462952231,19.49179981,3643.0,3642.9,1e-08]
[1753462953348,19.94559981,3643.0,3642.9,1e-08]
[1753462953646,15.68459981,3643.0,3642.9,1e-08]
[1753462953842,19.94559981,3643.0,3642.9,1e-08]
[1753462954047,19.94459981,3643.0,3642.9,1e-08]
[1753462954345,20.41659981,3643.0,3642.9,1e-08]
[1753462954709,19.94459981,3643.0,3642.9,1e-08]
[1753462955615,19.49079981,3643.0,3642.9,1e-08]
[1753462956023,21.13979981,3643.0,3642.9,1e-08]
[1753462956226,19.49079981,3643.0,3642.9,1e-08]
[1753462956428,15.23079981,3643.0,3642.9,1e-08]
[1753462956755,17.20459039,3643.0,3642.9,0.49580001]
[1753462957162,12.94459039,3643.0,3642.9,0.49580001]
[1753462957454,17.20459039,3643.0,3642.9,0.96470001]
[1753462957956,7.062,3643.0,3642.9,0.96470001]
[1753462958141,0.002,3643.0,3642.9,1.88920001]
[1753462958344,0.002,3643.0,3642.9,2.07812001]
[1753462958542,0.002,3643.0,3642.9,4.82318575]
[1753462960263,0.002,3643.0,3642.9,2.07812001]
[1753462960468,0.002,3643.0,3642.9,4.82318575]
[1753462960827,0.002,3643.0,3642.9,4.8506364]
[1753462961325,0.002,3643.6,3643.5,3.51871369]
[1753462961521,0.002,3643.7,3643.6,2.74453836]
[1753462961724,0.002,3643.8,3643.7,6.29446304]
[1753462961978,0.002,3644.4,3644.3,4.06811119]
[1753462962124,0.002,3645.2,3644.3,4.06811119]
[1753462962125,0.002,3645.2,3645.0,3.51758422]
[1753462962331,0.002,3645.2,3645.0,3.65438422]
[1753462962663,0.002,3645.2,3645.0,5.28631519]
[1753462963472,0.002,3645.2,3645.0,9.54531519]
[1753462963638,0.002,3645.2,3645.0,9.51788035]
[1753462970280,0.002,3645.2,3645.0,2.04649613]
[1753462970690,0.002,3645.2,3645.0,6.30349613]
[1753462970890,0.002,3645.2,3645.0,9.04698035]
[1753462971046,0.002,3645.2,3645.0,9.51588035]
[1753462971383,0.002,3645.2,3645.0,6.30349613]
[1753462971945,0.002,3645.2,3645.0,9.04698035]
[1753462975653,0.002,3645.2,3645.0,9.51588035]
[1753462978251,0.002,3645.2,3645.0,9.04698035]
[1753462978584,0.002,3645.2,3645.0,4.78998035]
[1753462978886,0.002,3645.2,3645.0,9.07241519]
[1753462979084,0.002,3645.2,3645.0,9.04498035]
[1753462979386,0.002,3645.2,3645.0,9.51388035]
[1753462980179,1e-08,3645.2,3645.1,3.29340895]
[1753462980486,1e-08,3645.2,3645.1,9.32704584]
[1753462980694,1e-08,3645.2,3645.1,8.85814584]
[1753462981183,1e-08,3645.2,3645.1,4.60414584]
[1753462981389,1e-08,3645.2,3645.1,4.10834584]
[1753462981587,1e-08,3645.2,3645.1,8.36234584]
[1753462981772,1e-08,3645.2,3645.1,8.85814584]
[1753462982997,1e-08,3645.2,3645.1,12.32704584]
[1753462983170,1e-08,3645.2,3645.1,12.87704584]
[1753462986218,1e-08,3645.2,3645.1,11.91134584]
[1753462986510,0.47160001,3645.2,3645.1,3.52910895]
[1753462986696,0.47160001,3645.2,3645.1,7.78210895]
[1753462987202,1e-08,3645.2,3645.1,7.78210895]
[1753462989823,1e-08,3645.2,3645.0,0.1368]
[1753462989824,0.47160001,3645.2,3645.0,0.1368]
[1753462990107,3.7005337,3645.2,3645.1,4.253]
[1753462990315,2.74374906,3644.7,3644.5,0.001]
[1753462990629,0.1368,3644.9,3644.5,0.001]
[1753462990773,3.70098532,3644.6,3644.5,0.001]
[1753462992216,3.21538532,3644.6,3644.5,0.001]
[1753462992391,3.70098532,3644.6,3644.5,0.001]
[1753462993615,3.21538532,3644.6,3644.5,0.001]
[1753462994614,0.4716,3644.9,3644.5,0.001]
[1753462994774,1e-08,3645.2,3644.5,0.4978]
[1753462994979,2.74342119,3645.1,3644.8,0.1368]
[1753462995209,1e-08,3645.2,3644.9,4.253]
[1753462995491,1e-08,3645.2,3645.0,0.1368]
[1753462995704,1e-08,3645.2,3645.1,3.55050895]
[1753462996078,1e-08,3645.2,3645.1,4.04730895]
[1753462996716,1e-08,3645.2,3645.1,4.49750895]
[1753462997485,1e-08,3645.2,3645.1,4.04730895]
[1753462997819,1e-08,3645.2,3645.1,5.21092259]
[1753462998182,1e-08,3645.2,3645.1,6.22371364]
[1753462998503,1e-08,3645.2,3645.1,8.16002259]
[1753462998711,1e-08,3645.2,3645.1,5.41661364]
[1753462999586,1e-08,3645.2,3645.1,8.68425667]
[1753462999782,1e-08,3645.2,3645.1,8.65682259]
[1753463002491,1e-08,3645.2,3645.1,1.16361364]
[1753463002695,1e-08,3645.2,3645.1,4.253]
[1753463003737,1e-08,3645.2,3645.0,0.1368]
[1753463003738,3.21499449,3645.2,3645.0,0.1368]
[1753463003887,2.74339449,3645.2,3645.1,4.252]
[1753463004081,2.74348422,3645.0,3644.9,0.1368]
[1753463004278,2.74355949,3644.9,3644.5,4.253]
[1753463004491,0.9572,3644.8,3644.6,4.252]
[1753463004727,2.74371448,3644.7,3644.6,4.252]
[1753463005082,0.9572,3644.7,3644.5,0.001]
[1753463005278,0.4716,3644.7,3644.6,4.252]
[1753463006018,3.21531004,3644.7,3644.6,4.252]
[1753463006204,0.4716,3644.7,3644.6,4.252]
[1753463006515,0.1368,3644.9,3644.6,4.252]
[1753463006700,2.74353596,3645.0,3644.6,4.252]
[1753463006900,0.4716,3644.9,3644.6,0.1368]
[1753463007119,2.74377206,3644.7,3644.6,4.252]
[1753463007527,2.74378532,3644.6,3644.5,4.253]
[1753463007697,3.21538532,3644.6,3644.5,0.001]
[1753463007889,3.70098532,3644.6,3644.5,0.001]
[1753463008084,4.47818532,3644.6,3644.5,0.001]
[1753463008420,5.21404875,3644.6,3644.5,0.001]
[1753463011214,8.21404875,3644.6,3644.5,0.001]
[1753463011420,8.76404875,3644.6,3644.5,0.001]
[1753463012505,13.01604875,3644.6,3644.5,0.001]
[1753463013423,12.46604875,3644.6,3644.5,0.001]
[1753463013726,7.72844875,3644.6,3644.5,0.001]
[1753463014292,11.50884875,3644.6,3644.5,0.001]
[1753463014490,11.98044875,3644.6,3644.5,0.001]
[1753463015621,1.2628,3644.6,3644.5,0.001]
[1753463015821,0.7575,3644.9,3644.5,0.001]
[1753463015988,0.4716,3645.1,3644.5,0.4978]
[1753463016188,0.1368,3644.9,3644.5,0.4978]
[1753463016618,0.1368,3644.9,3644.6,0.4972]
[1753463017011,3.0,3644.8,3644.5,0.001]
[1753463017203,3.5686,3644.9,3644.5,0.001]
[1753463017728,0.5686,3644.9,3644.5,0.001]
[1753463017892,0.4318,3644.8,3644.5,0.001]
[1753463018091,5.74378532,3644.6,3644.5,0.001]
[1753463018434,11.48698532,3644.6,3644.5,0.001]
[1753463018734,12.39098532,3644.6,3644.5,0.001]
[1753463019109,2.74454249,3643.6,3643.4,0.1376]
[1753463019308,3.54888465,3643.7,3643.4,0.1376]
[1753463019694,3.98068465,3643.7,3643.4,0.1376]
[1753463019895,3.98072364,3643.7,3643.3,0.1376]
[1753463020357,0.8044,3643.7,3643.3,0.6348]
[1753463020651,0.1376,3643.9,3643.4,0.4972]
[1753463020857,0.1433984,3644.6,3643.5,0.80714613]
[1753463021151,2.8816246,3644.3,3643.7,0.1376]
[1753463021513,0.1376,3644.3,3643.8,0.4972]
[1753463021705,0.1376,3644.3,3643.9,0.9281]
[1753463021906,3.0,3644.7,3644.1,0.7766]
[1753463022110,3.1368,3644.7,3644.2,0.9281]
[1753463022342,3.1368,3644.7,3644.3,0.4972]
[1753463022522,0.68505604,3644.7,3644.1,0.1376]
[1753463022722,2.74403822,3644.3,3643.8,0.4972]
[1753463022927,0.4318,3644.2,3643.6,0.7766]
[1753463023116,0.1376,3644.0,3643.5,0.6348]
[1753463023522,2.88183783,3644.0,3643.5,0.1376]
[1753463023848,0.1376,3644.0,3643.6,0.4972]
[1753463024020,0.1376,3644.0,3643.7,3.67251754]
[1753463024244,0.1376,3644.3,3643.8,1.0657]
[1753463024542,3.9626254,3644.7,3644.0,3.52078356]
[1753463024543,0.7871,3644.7,3644.0,3.52078356]
[1753463024729,3.1368,3644.7,3644.2,0.1376]
[1753463024935,3.1368,3644.7,3644.3,0.4972]
[1753463025331,3.1368,3644.7,3644.4,0.4972]
[1753463025537,3.1368,3644.7,3644.2,0.1376]
[1753463025538,3.1368,3644.7,3644.5,0.4972]
[1753463025731,5.88053583,3644.7,3644.2,0.1376]
[1753463025930,3.1368,3644.7,3644.3,0.4972]
[1753463026132,2.74385783,3644.6,3644.2,0.1376]
[1753463026376,0.4318,3644.6,3644.2,0.1376]
[1753463026718,0.4318,3644.6,3644.2,0.6348]
[1753463026929,5.88054184,3644.7,3644.2,0.6348]
[1753463027249,2.74379391,3644.6,3644.2,0.6348]
[1753463027620,2.74386169,3644.5,3644.2,0.6348]
[1753463027827,3.17561729,3644.6,3644.2,0.6348]
[1753463028370,2.74406144,3644.3,3643.9,0.1376]
[1753463028520,2.74420647,3644.1,3643.6,0.1376]
[1753463028725,3.31353383,3644.2,3643.6,0.1376]
[1753463028926,2.88173383,3644.2,3643.7,0.4972]
[1753463029165,2.88173383,3644.2,3643.8,0.4972]
[1753463029773,0.1376,3644.2,3643.6,0.1376]
[1753463029927,0.1376,3644.2,3643.9,0.4972]
[1753463030127,0.1376,3644.2,3644.0,0.4972]
[1753463030965,4.252,3644.5,3642.9,0.81440001]
[1753463031166,0.39310744,3644.4,3643.9,0.1376]
[1753463031460,2.7442371,3644.0,3643.6,0.1376]
[1753463031839,0.4318,3643.9,3643.6,0.1376]
[1753463032163,3.17611711,3643.9,3643.6,0.1376]
[1753463032335,0.4318,3643.9,3643.6,0.1376]
[1753463033136,0.1376,3644.1,3643.7,0.4972]
[1753463033443,0.1376,3644.1,3643.6,0.1376]
[1753463033645,0.1376,3644.1,3643.8,0.4972]
[1753463034232,2.88176653,3644.1,3643.8,0.4972]
[1753463034471,2.74424271,3644.0,3643.6,0.1376]
[1753463035286,3.17604271,3644.0,3643.6,0.1376]
[1753463035984,0.4318,3644.0,3643.6,0.1376]
[1753463036142,2.8817854,3644.1,3643.6,0.1376]
[1753463036349,2.8817854,3644.1,3643.7,0.4972]
[1753463037060,0.5694,3644.1,3643.7,0.4972]
[1753463037261,2.74426185,3644.0,3643.7,0.4972]
[1753463037862,3.13837835,3644.1,3643.6,0.1376]
[1753463038164,0.1376,3644.1,3643.8,0.4972]
[1753463038361,2.74424014,3644.0,3643.8,0.4972]
[1753463038565,2.88178818,3644.1,3643.8,0.4972]
[1753463039086,2.74423788,3644.0,3643.8,0.4972]
[1753463039258,3.13839306,3644.1,3643.8,0.4972]
[1753463039584,2.74424996,3644.0,3643.8,0.4972]
[1753463040287,2.74424996,3644.0,3643.4,0.1376]
[1753463040288,2.74443574,3643.8,3643.4,0.1376]
[1753463040583,0.5694,3643.9,3643.4,0.1376]
[1753463040784,0.5694,3643.9,3643.5,0.4972]
[1753463041087,2.74443112,3643.8,3643.5,0.4972]
[1753463041653,0.82642003,3643.9,3643.5,0.4972]
[1753463041956,0.25702003,3644.0,3643.6,3.81023094]
[1753463042181,2.88173202,3644.2,3643.7,0.9281]
[1753463042386,0.1376,3644.2,3643.8,1.3279]
[1753463042599,0.1376,3644.2,3643.8,0.8307]
[1753463042796,0.25702003,3644.3,3643.9,3.69982366]
[1753463043097,0.25702003,3644.5,3644.1,0.1376]
[1753463043397,0.25702003,3644.5,3644.2,0.9281]
[1753463043559,3.39382003,3644.6,3644.2,0.4309]
[1753463043758,3.13761223,3644.6,3644.3,0.4972]
[1753463043959,3.13761223,3644.6,3644.4,0.4972]
[1753463044168,2.74386061,3644.5,3644.4,0.4972]
[1753463044367,1.71923219,3644.5,3644.1,0.1376]
[1753463044567,3.64800194,3644.4,3643.8,0.8307]
[1753463044773,3.13866025,3644.3,3643.8,0.9683]
[1753463045061,2.88164022,3644.3,3643.8,1.4655]
[1753463045282,2.88164022,3644.3,3643.9,0.4972]
[1753463045562,0.1376,3644.3,3643.9,0.4972]
[1753463045761,0.1376,3644.3,3644.0,0.4972]
[1753463045962,0.1376,3644.3,3644.1,0.4972]
[1753463046591,0.25699255,3644.4,3644.2,0.4733]
[1753463046791,4.3878,3644.6,3644.2,0.4733]
[1753463046996,0.25699255,3644.5,3644.3,0.4733]
[1753463047499,0.25699255,3644.5,3644.4,0.4733]
[1753463047794,4.251,3644.9,3644.4,5.16207787]
[1753463048003,0.25699255,3644.8,3644.4,1.3322]
[1753463048300,0.25699255,3644.8,3644.5,0.4733]
[1753463048594,0.25699255,3644.8,3644.1,4.251]
[1753463048595,2.74378582,3644.6,3644.1,0.8127]
[1753463048808,2.7439359,3644.4,3644.3,0.1376]
[1753463048959,2.7439359,3644.4,3643.9,4.251]
[1753463049162,2.74401119,3644.3,3643.8,0.8127]
[1753463049362,2.74409207,3644.2,3643.9,0.1376]
[1753463049560,0.9137,3644.2,3643.6,0.1376]
[1753463049798,2.74431241,3643.9,3643.1,0.8127]
[1753463050105,2.74431241,3643.9,3643.1,4.25]
[1753463050106,0.9137,3643.8,3643.1,4.25]
[1753463050279,0.1376,3643.5,3643.0,3.35686454]
[1753463050481,0.1376,3643.5,3643.0,0.1386]
[1753463050684,0.1376,3643.5,3643.1,0.4733]
[1753463050883,0.1376,3643.5,3643.0,0.1386]
[1753463051108,0.1376,3643.5,3643.1,0.4733]
[1753463051417,2.74468902,3643.4,3643.1,0.4733]
[1753463051566,3.18648902,3643.4,3643.0,0.1386]
[1753463052215,2.74477166,3643.3,3643.0,0.6119]
[1753463052373,2.74477166,3643.3,3643.0,0.1386]
[1753463052726,3.18651349,3643.4,3643.0,0.1386]
[1753463052903,0.4418,3643.3,3643.0,0.1386]
[1753463053226,0.4418,3643.2,3643.0,0.1386]
[1753463053405,3.18664681,3643.2,3643.1,0.001]
[1753463053573,3.51906268,3643.2,3643.1,0.001]
[1753463053772,0.4418,3643.2,3643.1,0.001]
[1753463054311,0.8024,3643.4,3643.1,0.001]
[1753463054523,0.1376,3643.5,3643.2,0.4733]
[1753463054986,0.1376,3643.5,3643.1,0.001]
[1753463054987,0.1376,3643.5,3643.3,1.261]
[1753463055195,7.12382299,3643.8,3643.4,0.6109]
[1753463055390,3.44327315,3643.7,3643.1,0.001]
[1753463055574,2.88227613,3643.5,3643.1,0.001]
[1753463055902,0.25695054,3643.6,3643.3,0.1376]
[1753463056113,3.0,3644.4,3643.7,2.74446304]
[1753463056281,0.25688069,3644.4,3644.0,2.74420946]
[1753463056466,0.1388,3644.5,3644.1,0.4441]
[1753463056673,0.1388,3644.5,3644.2,0.4733]
[1753463056872,0.54979767,3644.5,3644.2,0.4733]
[1753463057114,0.5806,3644.5,3643.9,1.3836]
[1753463057280,0.002,3644.5,3644.1,2.74416179]
[1753463057486,0.002,3644.5,3644.4,0.9095]
[1753463057922,0.002,3644.5,3644.4,0.1368]
[1753463058222,0.002,3644.5,3644.4,4.3868]
[1753463058429,1.2289,3644.5,3643.9,4.7233]
[1753463058634,0.1376,3644.3,3643.9,4.7233]
[1753463058797,0.1376,3644.3,3643.9,4.25]
[1753463059000,0.1376,3644.3,3644.0,0.4733]
[1753463059640,0.1376,3644.3,3643.9,4.25]
[1753463059849,0.1376,3644.3,3643.9,4.7233]
[1753463060001,0.1376,3644.3,3644.0,0.4733]
[1753463060196,5.199,3644.1,3642.9,1e-08]
[1753463060414,0.7851,3643.7,3642.9,0.47330001]
[1753463060631,0.1376,3643.4,3642.9,0.61090001]
[1753463060932,2.7448397,3643.2,3642.9,1e-08]
[1753463061450,4.83810382,3643.2,3642.9,1e-08]
[1753463061640,7.83810382,3643.2,3642.9,1e-08]
[1753463061800,10.59135696,3643.2,3642.9,1e-08]
[1753463062732,10.33449284,3643.2,3642.9,1e-08]
[1753463062931,10.18038183,3643.2,3642.9,1e-08]
[1753463063433,10.32382261,3643.2,3642.9,1e-08]
[1753463064015,14.57382261,3643.2,3642.9,1e-08]
[1753463064712,10.1324397,3643.2,3642.9,1e-08]
[1753463065040,10.5742397,3643.2,3642.9,1e-08]
[1753463068036,10.1324397,3643.2,3642.9,1e-08]
[1753463068237,7.3886,3643.2,3643.1,0.4743]
[1753463068602,10.1334397,3643.2,3643.1,0.4743]
[1753463069208,7.3886,3643.2,3643.1,0.4743]
[1753463069721,10.1334397,3643.2,3643.1,0.001]
[1753463069919,3.1376,3643.2,3643.1,0.001]
[1753463070125,5.8824397,3643.2,3643.1,0.001]
[1753463070324,3.1376,3643.2,3643.1,0.4743]
[1753463070550,5.8824397,3643.2,3643.1,0.4743]
[1753463070845,10.79724362,3643.2,3643.1,0.001]
[1753463071055,12.46664362,3643.2,3643.1,0.001]
[1753463071212,11.99474362,3643.2,3643.1,0.001]
[1753463071407,11.55294362,3643.2,3643.1,0.001]
[1753463073164,11.99474362,3643.2,3643.1,0.001]
[1753463074551,23.88113436,3643.2,3643.1,0.001]
[1753463075543,23.88114269,3643.2,3643.1,0.001]
[1753463075845,25.53014269,3643.2,3643.1,0.001]
[1753463076025,25.05824269,3643.2,3643.1,0.001]
[1753463076483,11.80887699,3643.2,3643.1,0.001]
[1753463077317,6.80217699,3643.2,3643.1,0.001]
[1753463077623,10.1334397,3643.2,3643.1,0.4729]
[1753463078112,5.8824397,3643.2,3643.1,0.4729]
[1753463078312,10.1334397,3643.2,3643.1,0.4729]
[1753463078540,10.38948518,3643.2,3643.1,0.001]
[1753463078812,10.1334397,3643.2,3643.1,0.001]
[1753463079246,10.38954052,3643.2,3643.1,0.4729]
[1753463079431,11.7812449,3643.2,3643.1,0.001]
[1753463079636,12.2266449,3643.2,3643.1,0.001]
[1753463079833,13.4400449,3643.2,3643.1,0.001]
[1753463080037,13.59373599,3643.2,3643.1,0.001]
[1753463080248,16.33555609,3643.0,3642.9,1e-08]
[1753463080447,26.54174867,3643.0,3642.9,1e-08]
[1753463080616,27.12474867,3643.0,3642.9,1e-08]
[1753463081448,27.12479159,3643.0,3642.9,1e-08]
[1753463082432,13.87182589,3643.0,3642.9,1e-08]
[1753463083352,28.13749159,3643.0,3642.9,1e-08]
[1753463084232,28.1375236,3643.0,3642.9,1e-08]
[1753463084632,28.29122995,3643.0,3642.9,1e-08]
[1753463085753,42.79122995,3643.0,3642.9,1e-08]
[1753463089458,28.29122995,3643.0,3642.9,1e-08]
[1753463089658,27.82852995,3643.0,3642.9,1e-08]
[1753463090182,27.38312995,3643.0,3642.9,1e-08]
[1753463090348,27.82852995,3643.0,3642.9,1e-08]
[1753463090682,28.29122995,3643.0,3642.9,1e-08]
[1753463091176,27.82852995,3643.0,3642.9,1e-08]
[1753463091471,28.29122995,3643.0,3642.9,1e-08]
[1753463091851,27.82967199,3643.0,3642.9,1e-08]
[1753463093343,28.29232318,3643.0,3642.9,1e-08]
[1753463093690,27.82962318,3643.0,3642.9,1e-08]
[1753463093978,3.29559332,3642.2,3642.1,0.001]
[1753463094179,12.34972737,3642.2,3642.1,0.001]
[1753463094380,12.74416865,3642.2,3642.1,0.001]
[1753463094573,13.18956865,3642.2,3642.1,0.001]
[1753463095085,12.74416865,3642.2,3642.1,0.001]
[1753463095317,14.71635325,3642.2,3642.1,0.001]
[1753463095482,14.85983926,3642.2,3642.1,0.001]
[1753463095649,15.30523926,3642.2,3642.1,0.001]
[1753463096245,8.7354687,3642.1,3642.0,1e-08]
[1753463096474,8.7354687,3642.1,3641.6,1e-08]
[1753463096475,5.73577028,3641.7,3641.6,1e-08]
[1753463096783,5.73622278,3641.1,3641.0,0.001]
[1753463097074,24.40255339,3641.1,3641.0,0.001]
[1753463097277,7.94549821,3641.0,3640.9,1e-08]
[1753463097479,8.60106686,3641.0,3640.9,1e-08]
[1753463097787,11.30015862,3641.0,3640.9,1e-08]
[1753463097968,11.55681545,3641.0,3640.9,1e-08]
[1753463098283,11.30015862,3641.0,3640.9,1e-08]
[1753463098449,10.85475862,3641.0,3640.9,1e-08]
[1753463098653,15.10575862,3641.0,3640.9,1e-08]
[1753463099176,15.10575862,3641.0,3640.4,0.001]
[1753463099177,3.29678671,3640.7,3640.4,1e-08]
[1753463099389,7.94595088,3640.4,3640.3,1e-08]
[1753463099565,7.94602634,3640.3,3640.2,1e-08]
[1753463099769,8.52902634,3640.3,3640.2,1e-08]
[1753463099967,1.649,3639.9,3639.2,0.4719]
[1753463100203,0.1376,3639.6,3639.3,0.4434]
[1753463100504,4.252,3639.9,3639.7,2.74747918]
[1753463100798,7.13691269,3640.0,3639.8,0.9153]
[1753463101003,6.99932822,3639.9,3639.8,0.4434]
[1753463101174,2.74763016,3639.5,3639.4,0.7605]
[1753463101374,2.74778116,3639.3,3639.2,0.4434]
[1753463101575,7.13738116,3639.3,3639.2,0.4434]
[1753463101980,7.13738116,3639.3,3639.2,0.9153]
[1753463102364,3.0,3639.2,3638.8,0.4719]
[1753463102569,5.74800769,3639.0,3638.9,0.4719]
[1753463102836,5.74800769,3639.0,3637.9,0.1376]
[1753463102837,0.1376,3639.0,3637.9,0.1376]
[1753463102985,3.0,3638.8,3638.1,0.4434]
[1753463103302,2.88620286,3638.3,3638.2,0.4719]
[1753463103603,2.05019687,3639.1,3638.2,1.7448]
[1753463103789,0.1376,3638.8,3638.3,1.22738]
[1753463104110,4.3906,3638.8,3638.4,0.9153]
[1753463104305,4.3906,3638.8,3638.5,0.9153]
[1753463104606,4.3906,3638.8,3638.2,0.8295]
[1753463104607,4.253,3638.8,3638.6,0.9153]
[1753463104804,0.1376,3638.5,3638.2,0.8295]
[1753463105372,0.1376,3638.5,3638.3,0.9153]